[Event "Titled Tuesday Blitz July 18 Late 2023"]
[White "robertoalejandro10"]
[Black "Matinian, Nikita"]
[BlackFideId "24129100"]
[WhiteElo "2594"]
[BlackElo "2740"]
[Result "0-1"]
[Round "9"]
[TimeControl "180+2"]
[Date "2023.07.18"]
[WhiteClock "0:00:28"]
[BlackClock "0:01:41"]
[Board "25"]

1. Nf3 {[%clk 0:03:00]}  Nf6 {[%clk 0:02:58]} 2. b3 {[%clk 0:03:00]}  g6 {[%clk 0:02:55]} 3. Bb2 {[%clk 0:03:01]}  Bg7 {[%clk 0:02:56]} 4. g3 {[%clk 0:03:01]}  d6 {[%clk 0:02:56]} 5. Bg2 {[%clk 0:03:02]}  c5 {[%clk 0:02:57]} 6. O-O {[%clk 0:03:02]}  e5 {[%clk 0:02:57]} 7. c4 {[%clk 0:03:02]}  O-O {[%clk 0:02:57]} 8. Nc3 {[%clk 0:03:03]}  Nc6 {[%clk 0:02:57]} 9. e3 {[%clk 0:03:03]}  Re8 {[%clk 0:02:46]} 10. Re1 {[%clk 0:02:58]}  e4 {[%clk 0:02:44]} 11. Ng5 {[%clk 0:02:52]}  h6 {[%clk 0:02:35]} 12. Nh3 {[%clk 0:02:52]}  Bg4 {[%clk 0:02:33]} 13. Qc1 {[%clk 0:02:39]}  Ne5 {[%clk 0:02:31]} 14. Qc2 {[%clk 0:02:34]}  Qd7 {[%clk 0:02:25]} 15. Nf4 {[%clk 0:02:33]}  g5 {[%clk 0:02:25]} 16. Nfd5 {[%clk 0:02:33]}  Nxd5 {[%clk 0:02:18]} 17. Nxd5 {[%clk 0:02:33]}  Nf3+ {[%clk 0:02:08]} 18. Kh1 {[%clk 0:02:29]}  Nxe1 {[%clk 0:02:08]} 19. Rxe1 {[%clk 0:02:29]}  Bf3 {[%clk 0:02:09]} 20. Bxf3 {[%clk 0:02:07]}  exf3 {[%clk 0:02:07]} 21. Bxg7 {[%clk 0:02:07]}  Kxg7 {[%clk 0:02:07]} 22. Qb2+ {[%clk 0:02:07]}  Re5 {[%clk 0:02:07]} 23. d4 {[%clk 0:01:57]}  cxd4 {[%clk 0:02:08]} 24. Qxd4 {[%clk 0:01:54]}  Re8 {[%clk 0:02:02]} 25. Qxa7 {[%clk 0:01:41]}  Rxd5 {[%clk 0:01:57]} 26. cxd5 {[%clk 0:01:38]}  Re4 {[%clk 0:01:56]} 27. Qa5 {[%clk 0:01:22]}  Qh3 {[%clk 0:01:46]} 28. Qc3+ {[%clk 0:01:19]}  Re5 {[%clk 0:01:46]} 29. Rg1 {[%clk 0:01:09]}  g4 {[%clk 0:01:46]} 30. Qd4 {[%clk 0:00:28]}  Kg8 {[%clk 0:01:41]} 0-1


[Site "https://www.chess.com"]

[Event "Titled Tuesday Blitz July 18 Late 2023"]
[White "Amburgy, Ryan"]
[Black "Gascon Del Nogal, Jose Rafael"]
[WhiteFideId "30924820"]
[BlackFideId "3902463"]
[WhiteElo "2684"]
[BlackElo "2583"]
[Result "1/2-1/2"]
[Round "9"]
[TimeControl "180+2"]
[Date "2023.07.18"]
[WhiteClock "0:01:26"]
[BlackClock "0:00:09"]
[Board "27"]

1. Nf3 {[%clk 0:02:57]}  c5 {[%clk 0:02:58]} 2. c4 {[%clk 0:02:56]}  Nc6 {[%clk 0:02:57]} 3. Nc3 {[%clk 0:02:57]}  g6 {[%clk 0:02:57]} 4. e3 {[%clk 0:02:56]}  Bg7 {[%clk 0:02:57]} 5. d4 {[%clk 0:02:56]}  d6 {[%clk 0:02:54]} 6. Be2 {[%clk 0:02:56]}  cxd4 {[%clk 0:02:52]} 7. exd4 {[%clk 0:02:56]}  Bg4 {[%clk 0:02:52]} 8. d5 {[%clk 0:02:56]}  Bxf3 {[%clk 0:02:52]} 9. Bxf3 {[%clk 0:02:56]}  Ne5 {[%clk 0:02:52]} 10. O-O {[%clk 0:02:56]}  Nf6 {[%clk 0:02:49]} 11. b3 {[%clk 0:02:53]}  O-O {[%clk 0:02:41]} 12. Bb2 {[%clk 0:02:53]}  Nxf3+ {[%clk 0:02:32]} 13. Qxf3 {[%clk 0:02:48]}  Nd7 {[%clk 0:02:32]} 14. Qe2 {[%clk 0:02:46]}  a6 {[%clk 0:02:27]} 15. Na4 {[%clk 0:02:37]}  Bxb2 {[%clk 0:02:11]} 16. Nxb2 {[%clk 0:02:37]}  Re8 {[%clk 0:02:10]} 17. Rad1 {[%clk 0:02:36]}  Qb8 {[%clk 0:02:07]} 18. Nd3 {[%clk 0:02:32]}  a5 {[%clk 0:02:02]} 19. a4 {[%clk 0:02:19]}  Qa7 {[%clk 0:02:02]} 20. Qe3 {[%clk 0:02:16]}  Qxe3 {[%clk 0:01:59]} 21. fxe3 {[%clk 0:02:17]}  b6 {[%clk 0:01:57]} 22. e4 {[%clk 0:02:14]}  f6 {[%clk 0:01:57]} 23. Kf2 {[%clk 0:02:09]}  Nc5 {[%clk 0:01:57]} 24. Nxc5 {[%clk 0:02:09]}  bxc5 {[%clk 0:01:58]} 25. Rd3 {[%clk 0:02:08]}  Rab8 {[%clk 0:01:55]} 26. Re1 {[%clk 0:02:08]}  Rb6 {[%clk 0:01:55]} 27. Ree3 {[%clk 0:02:08]}  Reb8 {[%clk 0:01:55]} 28. h3 {[%clk 0:02:07]}  Kf7 {[%clk 0:01:52]} 29. Rf3 {[%clk 0:02:07]}  h5 {[%clk 0:01:31]} 30. g4 {[%clk 0:02:06]}  hxg4 {[%clk 0:01:25]} 31. hxg4 {[%clk 0:02:07]}  Rh8 {[%clk 0:01:24]} 32. Rh3 {[%clk 0:02:07]}  Rxh3 {[%clk 0:01:24]} 33. Rxh3 {[%clk 0:02:08]}  Kg7 {[%clk 0:01:24]} 34. Kg2 {[%clk 0:02:03]}  Rb8 {[%clk 0:01:23]} 35. Kf2 {[%clk 0:01:55]}  f5 {[%clk 0:00:22]} 36. exf5 {[%clk 0:01:46]}  gxf5 {[%clk 0:00:23]} 37. Re3 {[%clk 0:01:47]}  fxg4 {[%clk 0:00:16]} 38. Rxe7+ {[%clk 0:01:47]}  Kf6 {[%clk 0:00:15]} 39. Re6+ {[%clk 0:01:28]}  Kf5 {[%clk 0:00:16]} 40. Rxd6 {[%clk 0:01:28]}  Rxb3 {[%clk 0:00:16]} 41. Rc6 {[%clk 0:01:25]}  Rb2+ {[%clk 0:00:17]} 42. Kg3 {[%clk 0:01:25]}  Rb3+ {[%clk 0:00:17]} 43. Kg2 {[%clk 0:01:25]}  Rb2+ {[%clk 0:00:18]} 44. Kg3 {[%clk 0:01:25]}  Rb3+ {[%clk 0:00:16]} 45. Kg2 {[%clk 0:01:26]}  Rb2+ {[%clk 0:00:09]} 46. Kg3 {[%clk 0:01:26]} 1/2-1/2


[Site "https://www.chess.com"]

[Event "Titled Tuesday Blitz July 18 Late 2023"]
[White "Medarde Santiago, Luis Marcos"]
[Black "Willy, Stephen"]
[WhiteFideId "2263076"]
[BlackFideId "30981468"]
[WhiteElo "2645"]
[BlackElo "2434"]
[Result "1-0"]
[Round "9"]
[TimeControl "180+2"]
[Date "2023.07.18"]
[WhiteClock "0:01:34"]
[BlackClock "0:00:59"]
[Board "28"]

1. e4 {[%clk 0:02:58]}  Nc6 {[%clk 0:02:54]} 2. d4 {[%clk 0:02:50]}  d5 {[%clk 0:02:54]} 3. e5 {[%clk 0:02:50]}  Bf5 {[%clk 0:02:53]} 4. c3 {[%clk 0:02:50]}  e6 {[%clk 0:02:53]} 5. Nf3 {[%clk 0:02:47]}  f6 {[%clk 0:02:49]} 6. Bb5 {[%clk 0:02:40]}  Ne7 {[%clk 0:02:46]} 7. exf6 {[%clk 0:02:37]}  gxf6 {[%clk 0:02:45]} 8. O-O {[%clk 0:02:38]}  Rg8 {[%clk 0:02:44]} 9. Nh4 {[%clk 0:02:36]}  Bg6 {[%clk 0:02:39]} 10. Nxg6 {[%clk 0:02:32]}  hxg6 {[%clk 0:02:40]} 11. Re1 {[%clk 0:02:32]}  Qd6 {[%clk 0:02:37]} 12. Qe2 {[%clk 0:02:33]}  Kf7 {[%clk 0:02:27]} 13. Nd2 {[%clk 0:02:33]}  a6 {[%clk 0:02:23]} 14. Bd3 {[%clk 0:02:32]}  Re8 {[%clk 0:02:22]} 15. Nb3 {[%clk 0:02:15]}  e5 {[%clk 0:02:06]} 16. Nc5 {[%clk 0:02:12]}  e4 {[%clk 0:01:57]} 17. Nxb7 {[%clk 0:01:59]}  Qd7 {[%clk 0:01:56]} 18. Bc2 {[%clk 0:01:59]}  Nf5 {[%clk 0:01:49]} 19. Ba4 {[%clk 0:01:57]}  Qe6 {[%clk 0:01:37]} 20. Qxa6 {[%clk 0:01:51]}  Ncxd4 {[%clk 0:01:11]} 21. Bxe8+ {[%clk 0:01:40]}  Kxe8 {[%clk 0:01:09]} 22. Qa8+ {[%clk 0:01:35]}  Kf7 {[%clk 0:00:59]} 23. Nd8+ {[%clk 0:01:34]} 1-0


[Site "https://www.chess.com"]

[Event "Titled Tuesday Blitz July 18 Late 2023"]
[White "Pranav, V"]
[Black "Hajiyev, Kanan"]
[WhiteFideId "25060783"]
[BlackFideId "13404148"]
[WhiteElo "2951"]
[BlackElo "2577"]
[Result "1-0"]
[Round "9"]
[TimeControl "180+2"]
[Date "2023.07.18"]
[WhiteClock "0:01:27"]
[BlackClock "0:00:00"]
[Board "29"]

1. e4 {[%clk 0:03:00]}  c6 {[%clk 0:02:57]} 2. Nf3 {[%clk 0:02:58]}  d5 {[%clk 0:02:58]} 3. e5 {[%clk 0:02:58]}  c5 {[%clk 0:02:58]} 4. d4 {[%clk 0:02:58]}  Nc6 {[%clk 0:02:47]} 5. c4 {[%clk 0:02:57]}  cxd4 {[%clk 0:02:44]} 6. Nxd4 {[%clk 0:02:57]}  e6 {[%clk 0:02:37]} 7. Nc3 {[%clk 0:02:55]}  Bc5 {[%clk 0:02:20]} 8. Nxc6 {[%clk 0:02:52]}  bxc6 {[%clk 0:02:21]} 9. cxd5 {[%clk 0:02:51]}  cxd5 {[%clk 0:02:18]} 10. Bd3 {[%clk 0:02:49]}  Ne7 {[%clk 0:02:13]} 11. O-O {[%clk 0:02:48]}  O-O {[%clk 0:02:09]} 12. Bg5 {[%clk 0:02:45]}  h6 {[%clk 0:01:58]} 13. Bh4 {[%clk 0:02:44]}  Bb7 {[%clk 0:01:45]} 14. Rc1 {[%clk 0:02:42]}  Rc8 {[%clk 0:01:44]} 15. Qg4 {[%clk 0:02:36]}  Qe8 {[%clk 0:01:37]} 16. Na4 {[%clk 0:02:24]}  Bb6 {[%clk 0:01:16]} 17. Rxc8 {[%clk 0:02:20]}  Bxc8 {[%clk 0:01:12]} 18. Nxb6 {[%clk 0:02:19]}  axb6 {[%clk 0:01:12]} 19. Qb4 {[%clk 0:02:11]}  Nc6 {[%clk 0:01:04]} 20. Qd6 {[%clk 0:02:10]}  Qd7 {[%clk 0:01:01]} 21. Bh7+ {[%clk 0:01:51]}  Kxh7 {[%clk 0:00:59]} 22. Qxf8 {[%clk 0:01:52]}  Nxe5 {[%clk 0:00:56]} 23. Qd8 {[%clk 0:01:49]}  Qc6 {[%clk 0:00:43]} 24. h3 {[%clk 0:01:47]}  Bb7 {[%clk 0:00:41]} 25. f3 {[%clk 0:01:44]}  Nc4 {[%clk 0:00:31]} 26. Bf2 {[%clk 0:01:40]}  b5 {[%clk 0:00:23]} 27. b3 {[%clk 0:01:38]}  Nd2 {[%clk 0:00:20]} 28. Re1 {[%clk 0:01:31]}  d4 {[%clk 0:00:05]} 29. Qxd4 {[%clk 0:01:25]}  Nxf3+ {[%clk 0:00:05]} 30. gxf3 {[%clk 0:01:26]}  Qxf3 {[%clk 0:00:06]} 31. Kf1 {[%clk 0:01:26]}  Qxh3+ {[%clk 0:00:04]} 32. Ke2 {[%clk 0:01:26]}  Qf3+ {[%clk 0:00:02]} 33. Kd2 {[%clk 0:01:26]}  Bd5 {[%clk 0:00:00]} 34. Qd3+ {[%clk 0:01:27]} 1-0


[Site "https://www.chess.com"]

[Event "Titled Tuesday Blitz July 18 Late 2023"]
[White "Musovic, Armin"]
[Black "Stoyanov, Tsvetan"]
[WhiteFideId "939935"]
[BlackFideId "2917173"]
[WhiteElo "2554"]
[BlackElo "2723"]
[Result "0-1"]
[Round "9"]
[TimeControl "180+2"]
[Date "2023.07.18"]
[WhiteClock "0:00:27"]
[BlackClock "0:00:09"]
[Board "31"]

1. e4 {[%clk 0:02:56]}  c5 {[%clk 0:03:00]} 2. c3 {[%clk 0:02:56]}  Nc6 {[%clk 0:02:57]} 3. d4 {[%clk 0:02:56]}  cxd4 {[%clk 0:02:57]} 4. cxd4 {[%clk 0:02:57]}  d5 {[%clk 0:02:58]} 5. Nc3 {[%clk 0:02:57]}  e6 {[%clk 0:02:53]} 6. e5 {[%clk 0:02:57]}  a6 {[%clk 0:02:51]} 7. a3 {[%clk 0:02:57]}  b5 {[%clk 0:02:50]} 8. Nf3 {[%clk 0:02:56]}  Nge7 {[%clk 0:02:48]} 9. Bd3 {[%clk 0:02:55]}  Nf5 {[%clk 0:02:47]} 10. Bc2 {[%clk 0:02:41]}  Be7 {[%clk 0:02:45]} 11. O-O {[%clk 0:02:41]}  h5 {[%clk 0:02:42]} 12. b4 {[%clk 0:02:36]}  O-O {[%clk 0:02:37]} 13. h4 {[%clk 0:02:22]}  Bxh4 {[%clk 0:02:24]} 14. g3 {[%clk 0:02:12]}  Be7 {[%clk 0:02:23]} 15. Kg2 {[%clk 0:02:12]}  g6 {[%clk 0:02:21]} 16. Rh1 {[%clk 0:02:11]}  Qb6 {[%clk 0:02:16]} 17. Bxf5 {[%clk 0:02:07]}  exf5 {[%clk 0:02:14]} 18. Bh6 {[%clk 0:01:48]}  Rd8 {[%clk 0:02:11]} 19. Qd2 {[%clk 0:01:45]}  Be6 {[%clk 0:02:10]} 20. Rad1 {[%clk 0:01:44]}  Rac8 {[%clk 0:02:09]} 21. Ne2 {[%clk 0:01:45]}  f4 {[%clk 0:01:49]} 22. Nxf4 {[%clk 0:01:42]}  Bg4 {[%clk 0:01:35]} 23. Nh2 {[%clk 0:01:41]}  Bxd1 {[%clk 0:01:26]} 24. Rxd1 {[%clk 0:01:40]}  a5 {[%clk 0:00:55]} 25. e6 {[%clk 0:01:27]}  Bf6 {[%clk 0:00:54]} 26. exf7+ {[%clk 0:01:25]}  Kxf7 {[%clk 0:00:55]} 27. Nf3 {[%clk 0:01:24]}  axb4 {[%clk 0:00:49]} 28. axb4 {[%clk 0:01:24]}  Ne7 {[%clk 0:00:31]} 29. Qa2 {[%clk 0:01:07]}  Rc4 {[%clk 0:00:26]} 30. Ng5+ {[%clk 0:01:05]}  Kg8 {[%clk 0:00:19]} 31. Qe2 {[%clk 0:01:00]}  Qd6 {[%clk 0:00:14]} 32. Nfe6 {[%clk 0:00:58]}  Re8 {[%clk 0:00:13]} 33. Qf3 {[%clk 0:00:57]}  Nf5 {[%clk 0:00:13]} 34. Bf8 {[%clk 0:00:55]}  Rxf8 {[%clk 0:00:10]} 35. Nxf8 {[%clk 0:00:56]}  Kxf8 {[%clk 0:00:10]} 36. Ra1 {[%clk 0:00:56]}  Rc8 {[%clk 0:00:09]} 37. Nh3 {[%clk 0:00:48]}  Kg7 {[%clk 0:00:08]} 38. Ra7+ {[%clk 0:00:43]}  Rc7 {[%clk 0:00:07]} 39. Rxc7+ {[%clk 0:00:41]}  Qxc7 {[%clk 0:00:08]} 40. Qxd5 {[%clk 0:00:42]}  Nxd4 {[%clk 0:00:09]} 41. Kf1 {[%clk 0:00:23]}  Qc1+ {[%clk 0:00:06]} 42. Kg2 {[%clk 0:00:23]}  Qc6 {[%clk 0:00:07]} 43. Nf4 {[%clk 0:00:24]}  Qxd5+ {[%clk 0:00:05]} 44. Nxd5 {[%clk 0:00:24]}  Be5 {[%clk 0:00:05]} 45. f4 {[%clk 0:00:24]}  Bd6 {[%clk 0:00:05]} 46. Kh3 {[%clk 0:00:25]}  Kf7 {[%clk 0:00:04]} 47. g4 {[%clk 0:00:25]}  hxg4+ {[%clk 0:00:04]} 48. Kxg4 {[%clk 0:00:26]}  Ke6 {[%clk 0:00:05]} 49. Nc3 {[%clk 0:00:23]}  Bxb4 {[%clk 0:00:05]} 50. Ne4 {[%clk 0:00:23]}  Be7 {[%clk 0:00:06]} 51. Nd2 {[%clk 0:00:20]}  b4 {[%clk 0:00:06]} 52. Kg3 {[%clk 0:00:20]}  b3 {[%clk 0:00:07]} 53. Kf2 {[%clk 0:00:20]}  b2 {[%clk 0:00:07]} 54. Ke3 {[%clk 0:00:21]}  Bb4 {[%clk 0:00:07]} 55. Nb1 {[%clk 0:00:21]}  Nb3 {[%clk 0:00:07]} 56. Ke4 {[%clk 0:00:20]}  Nd2+ {[%clk 0:00:08]} 57. Nxd2 {[%clk 0:00:21]}  Bxd2 {[%clk 0:00:09]} 58. f5+ {[%clk 0:00:22]}  gxf5+ {[%clk 0:00:08]} 59. Kf3 {[%clk 0:00:22]}  b1=Q {[%clk 0:00:08]} 60. Ke2 {[%clk 0:00:23]}  Qe1+ {[%clk 0:00:08]} 61. Kd3 {[%clk 0:00:24]}  Qe3+ {[%clk 0:00:08]} 62. Kc2 {[%clk 0:00:25]}  f4 {[%clk 0:00:08]} 63. Kd1 {[%clk 0:00:26]}  f3 {[%clk 0:00:09]} 64. Kc2 {[%clk 0:00:26]}  f2 {[%clk 0:00:09]} 65. Kb1 {[%clk 0:00:26]}  f1=Q+ {[%clk 0:00:09]} 66. Ka2 {[%clk 0:00:27]}  Qc4+ {[%clk 0:00:09]} 67. Kb1 {[%clk 0:00:27]}  Qeb3+ {[%clk 0:00:09]} 68. Ka1 {[%clk 0:00:27]}  Qca4# {[%clk 0:00:09]} 0-1


[Site "https://www.chess.com"]

[Event "Titled Tuesday Blitz July 18 Late 2023"]
[White "Estrada Nieto, Julian"]
[Black "Velikanov, Alexander"]
[WhiteFideId "5101018"]
[BlackFideId "2039290"]
[WhiteElo "2547"]
[BlackElo "2702"]
[Result "0-1"]
[Round "9"]
[TimeControl "180+2"]
[Date "2023.07.18"]
[WhiteClock "0:00:00"]
[BlackClock "0:00:13"]
[Board "33"]

1. e4 {[%clk 0:03:00]}  e6 {[%clk 0:03:00]} 2. d4 {[%clk 0:03:00]}  d5 {[%clk 0:03:00]} 3. Nd2 {[%clk 0:03:00]}  Nf6 {[%clk 0:02:58]} 4. e5 {[%clk 0:03:01]}  Nfd7 {[%clk 0:02:58]} 5. Bd3 {[%clk 0:03:01]}  c5 {[%clk 0:02:58]} 6. c3 {[%clk 0:03:01]}  Nc6 {[%clk 0:02:58]} 7. Ne2 {[%clk 0:03:02]}  Qb6 {[%clk 0:02:51]} 8. Nf3 {[%clk 0:03:01]}  cxd4 {[%clk 0:02:51]} 9. cxd4 {[%clk 0:03:01]}  Bb4+ {[%clk 0:02:49]} 10. Bd2 {[%clk 0:03:01]}  O-O {[%clk 0:02:41]} 11. O-O {[%clk 0:03:00]}  Be7 {[%clk 0:02:27]} 12. Qc2 {[%clk 0:02:44]}  f5 {[%clk 0:02:25]} 13. a3 {[%clk 0:02:37]}  a5 {[%clk 0:02:16]} 14. Nf4 {[%clk 0:02:16]}  Ndb8 {[%clk 0:02:04]} 15. Ne2 {[%clk 0:01:50]}  Bd7 {[%clk 0:01:53]} 16. h4 {[%clk 0:01:39]}  Be8 {[%clk 0:01:47]} 17. Bg5 {[%clk 0:01:31]}  Bh5 {[%clk 0:01:39]} 18. Bxe7 {[%clk 0:01:23]}  Nxe7 {[%clk 0:01:40]} 19. Ng5 {[%clk 0:01:05]}  h6 {[%clk 0:01:39]} 20. Nh3 {[%clk 0:01:02]}  Bxe2 {[%clk 0:01:37]} 21. Qxe2 {[%clk 0:01:01]}  Qxd4 {[%clk 0:01:37]} 22. g3 {[%clk 0:00:51]}  Nbc6 {[%clk 0:01:35]} 23. Rfe1 {[%clk 0:00:50]}  Ng6 {[%clk 0:01:35]} 24. Rad1 {[%clk 0:00:43]}  Qxe5 {[%clk 0:01:02]} 25. Qh5 {[%clk 0:00:43]}  Qf6 {[%clk 0:01:02]} 26. Qe2 {[%clk 0:00:34]}  Nd4 {[%clk 0:00:52]} 27. Qe3 {[%clk 0:00:26]}  f4 {[%clk 0:00:48]} 28. Nxf4 {[%clk 0:00:24]}  Nxf4 {[%clk 0:00:48]} 29. Qxf4 {[%clk 0:00:21]}  Qxf4 {[%clk 0:00:46]} 30. gxf4 {[%clk 0:00:21]}  Rxf4 {[%clk 0:00:39]} 31. Re3 {[%clk 0:00:21]}  Rxh4 {[%clk 0:00:35]} 32. Kg2 {[%clk 0:00:19]}  Rf8 {[%clk 0:00:33]} 33. Rd2 {[%clk 0:00:18]}  Rg4+ {[%clk 0:00:33]} 34. Rg3 {[%clk 0:00:17]}  Rgf4 {[%clk 0:00:31]} 35. Bg6 {[%clk 0:00:14]}  R8f6 {[%clk 0:00:23]} 36. Bh5 {[%clk 0:00:11]}  e5 {[%clk 0:00:21]} 37. Bd1 {[%clk 0:00:10]}  g5 {[%clk 0:00:18]} 38. b4 {[%clk 0:00:10]}  axb4 {[%clk 0:00:16]} 39. axb4 {[%clk 0:00:10]}  Rc6 {[%clk 0:00:17]} 40. Ra2 {[%clk 0:00:09]}  Kg7 {[%clk 0:00:15]} 41. Ra7 {[%clk 0:00:08]}  Rb6 {[%clk 0:00:16]} 42. Bh5 {[%clk 0:00:07]}  Rxb4 {[%clk 0:00:15]} 43. Rc3 {[%clk 0:00:07]}  Ne6 {[%clk 0:00:16]} 44. Rc8 {[%clk 0:00:06]}  Rfc4 {[%clk 0:00:13]} 45. Re8 {[%clk 0:00:05]}  Nf4+ {[%clk 0:00:13]} 46. Kf3 {[%clk 0:00:04]}  Nxh5 {[%clk 0:00:14]} 47. Raa8 {[%clk 0:00:03]}  Nf6 {[%clk 0:00:13]} 48. Re7+ {[%clk 0:00:02]}  Kg6 {[%clk 0:00:13]} 49. Re6 {[%clk 0:00:02]}  Rf4+ {[%clk 0:00:13]} 50. Kg2 {[%clk 0:00:01]}  e4 {[%clk 0:00:13]} 51. Rg8+ {[%clk 0:00:00]}  Kh5 {[%clk 0:00:13]} 0-1


[Site "https://www.chess.com"]

[Event "Titled Tuesday Blitz July 18 Late 2023"]
[White "Rastbod, Ali"]
[Black "Santos Flores, Alberto"]
[WhiteFideId "12567477"]
[BlackFideId "3601234"]
[WhiteElo "2689"]
[BlackElo "2544"]
[Result "1-0"]
[Round "9"]
[TimeControl "180+2"]
[Date "2023.07.18"]
[WhiteClock "0:00:21"]
[BlackClock "0:00:00"]
[Board "34"]

1. d4 {[%clk 0:02:47]}  d5 {[%clk 0:02:59]} 2. Nf3 {[%clk 0:02:46]}  Nf6 {[%clk 0:02:59]} 3. c3 {[%clk 0:02:46]}  c6 {[%clk 0:02:55]} 4. Qc2 {[%clk 0:02:45]}  g6 {[%clk 0:02:52]} 5. Bf4 {[%clk 0:02:44]}  Bf5 {[%clk 0:02:52]} 6. Qb3 {[%clk 0:02:44]}  Qb6 {[%clk 0:02:52]} 7. c4 {[%clk 0:02:44]}  Nbd7 {[%clk 0:02:47]} 8. e3 {[%clk 0:02:44]}  Bg7 {[%clk 0:02:44]} 9. c5 {[%clk 0:02:43]}  Qxb3 {[%clk 0:02:43]} 10. axb3 {[%clk 0:02:43]}  Bxb1 {[%clk 0:02:42]} 11. Rxb1 {[%clk 0:02:44]}  a6 {[%clk 0:02:42]} 12. h3 {[%clk 0:02:44]}  O-O {[%clk 0:02:40]} 13. b4 {[%clk 0:02:44]}  Rfe8 {[%clk 0:02:36]} 14. Bd3 {[%clk 0:02:43]}  Nh5 {[%clk 0:02:32]} 15. Be5 {[%clk 0:02:42]}  Nxe5 {[%clk 0:02:27]} 16. dxe5 {[%clk 0:02:43]}  Bh8 {[%clk 0:02:18]} 17. g4 {[%clk 0:02:40]}  Ng7 {[%clk 0:02:18]} 18. Nd4 {[%clk 0:02:39]}  f6 {[%clk 0:02:05]} 19. e6 {[%clk 0:02:32]}  Rf8 {[%clk 0:02:00]} 20. f4 {[%clk 0:02:23]}  f5 {[%clk 0:01:59]} 21. gxf5 {[%clk 0:02:14]}  Nxf5 {[%clk 0:01:58]} 22. Nxf5 {[%clk 0:02:08]}  gxf5 {[%clk 0:01:58]} 23. Rg1+ {[%clk 0:02:09]}  Bg7 {[%clk 0:01:57]} 24. Rg5 {[%clk 0:02:10]}  Rf6 {[%clk 0:01:34]} 25. Bxf5 {[%clk 0:02:04]}  h6 {[%clk 0:01:32]} 26. Rh5 {[%clk 0:01:59]}  Raf8 {[%clk 0:01:32]} 27. Bg4 {[%clk 0:01:58]}  d4 {[%clk 0:01:32]} 28. f5 {[%clk 0:01:58]}  Rd8 {[%clk 0:01:25]} 29. Rd1 {[%clk 0:01:58]}  Rff8 {[%clk 0:01:20]} 30. exd4 {[%clk 0:01:51]}  Rxd4 {[%clk 0:01:18]} 31. Rxd4 {[%clk 0:01:51]}  Bxd4 {[%clk 0:01:19]} 32. Rxh6 {[%clk 0:01:51]}  Bxb2 {[%clk 0:01:18]} 33. Kd2 {[%clk 0:01:51]}  Rd8+ {[%clk 0:01:15]} 34. Kc2 {[%clk 0:01:51]}  Bf6 {[%clk 0:01:14]} 35. Bh5 {[%clk 0:01:46]}  Kg7 {[%clk 0:00:47]} 36. Rg6+ {[%clk 0:01:44]}  Kf8 {[%clk 0:00:41]} 37. Rg2 {[%clk 0:01:34]}  Rd4 {[%clk 0:00:36]} 38. Bf7 {[%clk 0:01:32]}  Bg7 {[%clk 0:00:34]} 39. f6 {[%clk 0:01:32]}  exf6 {[%clk 0:00:32]} 40. Bh5 {[%clk 0:01:14]}  Re4 {[%clk 0:00:23]} 41. Rd2 {[%clk 0:01:04]}  Rxe6 {[%clk 0:00:20]} 42. Rd8+ {[%clk 0:00:56]}  Ke7 {[%clk 0:00:20]} 43. Rb8 {[%clk 0:00:56]}  f5 {[%clk 0:00:11]} 44. Rxb7+ {[%clk 0:00:50]}  Kf6 {[%clk 0:00:12]} 45. Rb6 {[%clk 0:00:49]}  f4 {[%clk 0:00:09]} 46. Bg4 {[%clk 0:00:46]}  Re4 {[%clk 0:00:08]} 47. Rxc6+ {[%clk 0:00:44]}  Ke5 {[%clk 0:00:08]} 48. Re6+ {[%clk 0:00:28]}  Kd4 {[%clk 0:00:06]} 49. Rxe4+ {[%clk 0:00:25]}  Kxe4 {[%clk 0:00:06]} 50. c6 {[%clk 0:00:23]}  Be5 {[%clk 0:00:06]} 51. h4 {[%clk 0:00:23]}  f3 {[%clk 0:00:01]} 52. h5 {[%clk 0:00:22]}  Kf4 {[%clk 0:00:01]} 53. Bxf3 {[%clk 0:00:20]}  Kxf3 {[%clk 0:00:02]} 54. h6 {[%clk 0:00:20]}  Ke4 {[%clk 0:00:01]} 55. h7 {[%clk 0:00:20]}  Kd5 {[%clk 0:00:02]} 56. h8=Q {[%clk 0:00:20]}  Bxh8 {[%clk 0:00:02]} 57. c7 {[%clk 0:00:20]}  Kc4 {[%clk 0:00:00]} 58. c8=Q+ {[%clk 0:00:21]} 1-0


[Site "https://www.chess.com"]

[Event "Titled Tuesday Blitz July 18 Late 2023"]
[White "Leon Oquendo, Jorge"]
[Black "ArtemDyachuk"]
[WhiteFideId "3514803"]
[WhiteElo "2631"]
[BlackElo "2542"]
[Result "0-1"]
[Round "9"]
[TimeControl "180+2"]
[Date "2023.07.18"]
[WhiteClock "0:00:00"]
[BlackClock "0:00:05"]
[Board "36"]

1. d4 {[%clk 0:02:44]}  Nf6 {[%clk 0:02:45]} 2. c4 {[%clk 0:02:44]}  e6 {[%clk 0:02:45]} 3. Nc3 {[%clk 0:02:43]}  c5 {[%clk 0:02:43]} 4. d5 {[%clk 0:02:43]}  exd5 {[%clk 0:02:44]} 5. cxd5 {[%clk 0:02:43]}  d6 {[%clk 0:02:44]} 6. Nf3 {[%clk 0:02:44]}  g6 {[%clk 0:02:45]} 7. Bf4 {[%clk 0:02:44]}  Bg7 {[%clk 0:02:44]} 8. h3 {[%clk 0:02:44]}  O-O {[%clk 0:02:44]} 9. e3 {[%clk 0:02:45]}  Ne8 {[%clk 0:02:44]} 10. Be2 {[%clk 0:02:41]}  Nd7 {[%clk 0:02:44]} 11. O-O {[%clk 0:02:40]}  Ne5 {[%clk 0:02:43]} 12. Bh2 {[%clk 0:02:40]}  f5 {[%clk 0:02:43]} 13. Nd2 {[%clk 0:02:40]}  Bd7 {[%clk 0:02:40]} 14. a4 {[%clk 0:02:31]}  g5 {[%clk 0:02:13]} 15. f4 {[%clk 0:02:21]}  gxf4 {[%clk 0:02:09]} 16. exf4 {[%clk 0:02:16]}  Nf7 {[%clk 0:02:07]} 17. Nc4 {[%clk 0:02:14]}  b6 {[%clk 0:02:01]} 18. Bd3 {[%clk 0:02:14]}  a6 {[%clk 0:01:55]} 19. Ne3 {[%clk 0:02:01]}  Qf6 {[%clk 0:01:43]} 20. Qc2 {[%clk 0:01:59]}  Nh6 {[%clk 0:01:06]} 21. Kh1 {[%clk 0:01:59]}  Nc7 {[%clk 0:01:03]} 22. Rg1 {[%clk 0:01:48]}  b5 {[%clk 0:01:00]} 23. g4 {[%clk 0:01:40]}  fxg4 {[%clk 0:00:57]} 24. hxg4 {[%clk 0:01:37]}  Qh4 {[%clk 0:00:55]} 25. f5 {[%clk 0:01:08]}  Rae8 {[%clk 0:00:50]} 26. Ne4 {[%clk 0:01:01]}  Be5 {[%clk 0:00:41]} 27. axb5 {[%clk 0:00:58]}  Nxb5 {[%clk 0:00:36]} 28. Rxa6 {[%clk 0:00:50]}  Nd4 {[%clk 0:00:36]} 29. Qg2 {[%clk 0:00:40]}  Nf3 {[%clk 0:00:33]} 30. Nf1 {[%clk 0:00:33]}  Nxg1 {[%clk 0:00:27]} 31. Kxg1 {[%clk 0:00:33]}  Bxh2+ {[%clk 0:00:22]} 32. Nxh2 {[%clk 0:00:32]}  Qe1+ {[%clk 0:00:17]} 33. Nf1 {[%clk 0:00:33]}  Kh8 {[%clk 0:00:16]} 34. Rxd6 {[%clk 0:00:32]}  Nxg4 {[%clk 0:00:12]} 35. Rxd7 {[%clk 0:00:28]}  Rg8 {[%clk 0:00:12]} 36. Ng3 {[%clk 0:00:15]}  Nf6 {[%clk 0:00:09]} 37. Rf7 {[%clk 0:00:14]}  Re3 {[%clk 0:00:09]} 38. Rxf6 {[%clk 0:00:12]}  Rexg3 {[%clk 0:00:09]} 39. Be4 {[%clk 0:00:08]}  Rxg2+ {[%clk 0:00:05]} 40. Bxg2 {[%clk 0:00:00]}  Qe2 {[%clk 0:00:05]} 0-1


[Site "https://www.chess.com"]